bitfinex/quotes_ETHUSD_20240819
["timestamp","ask_amount","ask_price","bid_price","bid_amount"]
[1724092176992,5.43725575,2603.3,2603.0,0.05160134]
[1724092177194,1.59596575,2603.4,2603.0,3.89321134]
[1724092177395,1.59596575,2603.5,2603.2,3.84142]
[1724092177640,1.59596575,2603.6,2603.2,3.84133]
[1724092177801,1.59596575,2603.7,2603.3,0.05160134]
[1724092178001,9.27716575,2603.8,2603.3,0.05160134]
[1724092178322,1.59596575,2603.9,2603.4,3.89272134]
[1724092178525,1.59596575,2603.9,2603.5,3.84087]
[1724092178740,5.83319143,2604.0,2603.5,3.84087]
[1724092178741,5.43626575,2604.0,2603.5,3.84087]
[1724092178928,1.59596575,2604.0,2603.6,3.84082]
[1724092179098,8.23063143,2604.2,2603.6,7.73317134]
[1724092179099,1.59596575,2604.1,2603.6,7.73317134]
[1724092179301,6.23773,2604.2,2603.7,3.84066]
[1724092179502,1.59596575,2604.3,2603.9,3.84031]
[1724092179718,1.59596575,2604.4,2603.8,6.34220115]
[1724092179944,3.84004,2604.2,2604.0,0.05160134]
[1724092180249,4.04136575,2604.3,2603.5,6.22079]
[1724092180250,6.28528,2604.3,2603.7,3.8406]
[1724092180444,6.28528,2604.3,2604.1,0.05053184]
[1724092180665,6.28528,2604.3,2603.7,3.8406]
[1724092180859,7.51570269,2604.3,2604.2,0.05053184]
[1724092181039,3.67582269,2604.3,2603.8,3.84041]
[1724092181242,3.67582269,2604.3,2604.2,0.05053184]
[1724092181438,1.23042269,2604.3,2603.9,3.84038]
[1724092181636,3.83972,2604.4,2604.2,0.05053184]
[1724092181813,3.83972,2604.4,2603.9,3.84038]
[1724092182147,3.83972,2604.4,2604.0,0.05053184]
[1724092182346,6.31971,2604.6,2604.0,0.05053184]
[1724092182557,1.59596575,2604.8,2604.0,0.05053184]
[1724092182758,3.83914,2604.8,2604.2,3.83984]
[1724092182979,3.83958,2604.5,2603.8,3.84043]
[1724092183115,2.4803,2604.8,2603.8,3.84043]
[1724092183116,3.83988,2604.3,2603.8,3.84043]
[1724092183612,3.83961,2604.5,2604.0,3.84021]
[1724092184069,5.58296575,2604.9,2604.0,3.84021]
[1724092184070,5.43498575,2604.9,2604.2,3.83993]
[1724092184217,4.33801482,2605.1,2604.2,3.83987]
[1724092184218,4.38266858,2604.8,2604.2,3.83987]
[1724092184423,6.18938,2605.1,2604.1,2.4345]
[1724092184642,3.83943,2604.6,2604.1,2.4345]
[1724092184842,3.83922,2604.7,2604.1,6.27448]
[1724092185486,3.83936,2604.6,2604.1,7.285957]
[1724092185986,2.4163,2604.5,2603.7,13.02958]
[1724092186188,3.83997,2604.2,2603.7,9.18897]
[1724092186366,3.8401,2604.1,2603.7,9.18897]
[1724092186561,3.8401,2604.1,2603.7,6.84057]
[1724092186766,3.83995,2604.2,2603.7,6.84057]
[1724092186948,3.8398,2604.3,2603.8,3.84053]
[1724092187147,3.83995,2604.2,2603.8,3.84053]
[1724092187346,3.83981,2604.3,2603.8,4.524583]
[1724092187889,7.67974,2604.3,2603.8,4.524583]
[1724092188090,7.67974,2604.3,2603.8,3.84053]
[1724092188596,3.83968,2604.4,2603.8,3.84053]
[1724092188967,2.4163,2604.5,2604.0,3.84022]
[1724092189289,2.4163,2604.5,2604.1,0.384022]
[1724092189290,7.67922,2604.5,2604.1,0.384022]
[1724092189507,6.28891,2604.7,2604.1,0.384022]
[1724092189671,10.12823,2604.7,2604.2,3.83987]
[1724092189991,7.82569,2605.1,2604.1,0.384022]
[1724092189992,3.83938,2604.6,2604.1,0.384022]
[1724092190192,3.83903,2604.9,2604.1,0.384022]
[1724092190399,3.83928,2604.7,2604.2,3.83987]
[1724092190605,3.83922,2604.7,2604.3,3.83978]
[1724092190809,3.83922,2604.7,2604.2,3.83994]
[1724092191212,3.83922,2604.7,2604.3,3.83978]
[1724092192216,3.8391,2604.8,2604.3,4.6461542]
[1724092192368,3.8391,2604.8,2604.3,4.6461042]
[1724092193327,3.8391,2604.8,2604.3,8.4858342]
[1724092193613,7.67827,2604.8,2604.3,4.6461042]
[1724092193789,3.83923,2604.7,2604.3,4.6461042]
[1724092194403,6.26708,2605.0,2604.4,0.04716984]
[1724092194404,3.83952,2604.5,2604.4,0.04716984]
[1724092194774,3.83952,2604.5,2603.9,3.8403]
[1724092195035,2.4836,2604.9,2604.4,0.04716984]
[1724092195036,3.83899,2604.9,2604.4,0.04716984]
[1724092195318,3.83899,2604.9,2604.4,3.83958]
[1724092195641,2.4836,2605.2,2604.5,4.66028097]
[1724092195642,3.83877,2605.0,2604.5,4.66028097]
[1724092196690,3.83877,2605.0,2604.5,8.49972097]
[1724092196876,3.83877,2605.0,2604.5,4.66024097]
[1724092197073,3.83936,2604.6,2604.5,0.04708823]
[1724092197327,3.83936,2604.6,2604.0,3.0]
[1724092197328,3.83958,2604.5,2604.0,3.84023]
[1724092197519,3.83958,2604.5,2604.1,1.005769]
[1724092197823,3.83937,2604.6,2604.2,3.83993]
[1724092197995,3.83922,2604.7,2604.2,3.83993]
[1724092198333,3.83924,2604.7,2604.3,4.7083589]
[1724092198831,3.83924,2604.7,2604.2,3.83993]
[1724092200922,3.83924,2604.7,2603.7,5.2769]
[1724092200923,3.83989,2604.3,2603.7,5.2769]
[1724092201129,3.8401,2604.1,2603.7,3.0]
[1724092201417,2.4768,2604.2,2603.7,3.911762]
[1724092201621,3.987,2604.5,2604.1,3.84008]
[1724092201622,2.4768,2604.5,2604.1,3.84008]
[1724092201778,3.83937,2604.6,2603.8,2.3873]
[1724092201984,3.987,2605.1,2603.8,2.3873]
[1724092201985,3.83909,2604.8,2604.3,3.83979]
[1724092202178,6.09023,2605.0,2604.4,3.83958]
[1724092202421,3.83896,2604.9,2604.5,0.383958]
[1724092202726,6.09023,2605.0,2604.5,3.83943]
[1724092202944,3.83899,2604.9,2604.4,3.83963]
[1724092203109,3.83899,2604.9,2604.5,3.8395]
[1724092203432,7.67705,2605.2,2604.7,3.8392]
[1724092203724,3.83892,2604.9,2604.4,4.836075]
[1724092203883,3.83892,2604.9,2604.4,3.83954]
[1724092204084,3.83873,2605.1,2604.6,3.83936]
[1724092204296,3.83873,2605.1,2604.7,3.8392]
[1724092204535,7.67744,2605.1,2604.6,3.83936]
[1724092204958,3.8387,2605.1,2604.6,3.83936]
[1724092205965,3.8387,2605.1,2604.4,3.83954]
[1724092205966,3.83877,2605.0,2604.4,3.83954]
[1724092206244,2.4968,2604.9,2604.5,3.83949]
[1724092206396,6.33574,2604.9,2604.5,3.83949]
[1724092206926,6.33557,2605.0,2604.3,3.8397]
[1724092207101,10.32199,2605.4,2604.5,3.8395]
[1724092207297,3.83876,2605.1,2604.5,3.8395]
[1724092207502,3.987,2605.1,2604.1,3.83999]
[1724092207740,3.83932,2604.7,2604.2,3.83993]
[1724092208139,2.8955,2605.0,2604.4,3.83965]
[1724092208338,3.83894,2604.9,2604.4,3.83958]
[1724092208632,6.33557,2605.0,2604.5,3.83946]
[1724092208838,6.33557,2605.0,2604.5,3.83949]
[1724092209071,3.83895,2604.9,2604.4,6.27748]
[1724092209242,3.83877,2605.0,2604.5,3.83944]
[1724092209445,2.4441,2605.3,2604.6,3.83928]
[1724092209446,3.83869,2605.1,2604.6,3.83928]
[1724092209633,3.83913,2604.8,2604.2,3.83983]
[1724092209835,3.83937,2604.6,2604.0,3.84012]
[1724092210039,3.83965,2604.4,2603.9,3.84037]
[1724092210239,3.83965,2604.4,2603.8,3.84042]
[1724092210475,3.83965,2604.4,2603.9,0.384046]
[1724092210647,3.83965,2604.4,2604.0,3.84022]
[1724092210972,3.83936,2604.6,2604.0,3.84017]
[1724092211172,3.83936,2604.6,2604.2,3.83994]
[1724092211383,3.83936,2604.6,2604.0,4.2625416]
[1724092211531,3.83936,2604.6,2604.1,3.84002]
[1724092211736,3.987,2605.1,2604.1,2.3802]
[1724092211737,2.3654,2605.1,2604.1,2.3802]
[1724092211938,3.83879,2605.0,2604.5,3.83943]
[1724092212156,3.8388,2605.0,2604.5,3.83942]
[1724092212359,3.8388,2605.0,2604.2,0.66428516]
[1724092212360,3.83909,2604.8,2604.3,3.83969]
[1724092212752,3.83865,2605.1,2604.6,3.83935]
[1724092213361,3.83865,2605.1,2604.7,3.8392]
[1724092213546,7.67737,2605.1,2604.6,3.83929]
[1724092213954,3.83865,2605.1,2604.6,3.83923]
[1724092214151,3.83855,2605.2,2604.7,0.383923]
[1724092214380,3.83842,2605.3,2604.7,0.383923]
[1724092214577,3.8385,2605.2,2604.7,4.223113]
[1724092214938,3.83869,2605.1,2604.7,0.383923]
[1724092215139,3.83883,2605.0,2604.5,3.8395]
[1724092215366,2.4536,2604.8,2604.3,0.98841752]
[1724092215581,3.83928,2604.7,2604.1,3.0]
[1724092215785,3.83958,2604.5,2604.1,3.0]
[1724092215987,3.83958,2604.5,2604.2,0.04696267]
[1724092216193,3.83933,2604.7,2604.2,0.04696267]
[1724092216194,3.83937,2604.6,2604.2,0.04696267]
[1724092216557,3.83951,2604.5,2604.2,0.04696267]
[1724092216793,3.83937,2604.6,2604.2,0.04696267]
[1724092217097,3.83922,2604.7,2604.3,0.04696267]
[1724092217395,7.67856,2604.7,2604.2,3.83994]
[1724092217555,3.83947,2604.6,2604.4,0.04696267]
[1724092217756,3.83947,2604.6,2604.1,3.84009]
[1724092217956,3.83947,2604.6,2604.2,3.83994]
[1724092218190,3.83922,2604.7,2604.2,3.83994]
[1724092218404,3.83922,2604.7,2604.3,0.04696267]
[1724092218582,2.4536,2604.8,2604.0,3.84015]
[1724092218583,3.83951,2604.5,2604.0,3.8401]
[1724092218786,3.83945,2604.6,2604.1,3.84007]
[1724092219112,7.67894,2604.6,2604.1,3.88703267]
[1724092219317,3.83945,2604.6,2604.1,3.88703267]
[1724092219482,3.83945,2604.6,2604.2,3.83994]
[1724092219677,10.13199,2604.8,2604.2,7.67981]
[1724092219910,10.13194,2604.8,2604.3,3.88675267]
[1724092220106,6.29276,2604.8,2604.3,3.88675267]
[1724092220280,7.82098575,2605.0,2604.4,3.83963]
[1724092220481,7.20557649,2605.0,2604.4,3.83956]
[1724092220676,3.83899,2604.9,2604.4,3.83956]
[1724092220908,6.22502,2605.0,2604.5,0.04696267]
[1724092221125,6.22502,2605.0,2604.5,3.88638267]
[1724092221886,3.83893,2604.9,2604.5,3.88638267]
[1724092222286,1.59596575,2605.0,2604.5,4.90829194]
[1724092222500,5.43474575,2605.0,2604.5,4.90829194]
[1724092223229,1.59596575,2604.9,2604.5,4.90829194]
[1724092223647,1.59596575,2605.0,2604.6,3.83926]
[1724092224114,1.59596575,2605.0,2604.7,0.0466614]
[1724092225322,1.59596575,2605.0,2604.7,3.8858514]
[1724092225825,2.4657,2604.8,2604.7,0.0466614]
[1724092226023,12.14145618,2604.8,2604.7,0.0466614]
[1724092226233,3.83925,2604.7,2604.2,3.83994]
[1724092226531,1.59875824,2604.6,2604.2,3.83988]
[1724092226732,1.59875824,2604.6,2604.2,3.83987]
[1724092227134,5.43813824,2604.6,2604.1,3.84009]
[1724092227322,1.59875824,2604.4,2604.1,3.84008]
[1724092227522,1.59875824,2604.5,2604.1,4.608103]
[1724092227714,1.59875824,2604.5,2604.2,3.83993]
[1724092228113,1.59875824,2604.5,2604.2,3.83986]
[1724092228453,1.59875824,2604.7,2604.5,3.8395]
[1724092228612,1.59875824,2604.7,2604.5,8.30119]
[1724092228813,1.59875824,2604.7,2604.5,4.46169]
[1724092229121,1.59875824,2604.7,2604.5,3.83942]
[1724092230037,1.99763618,2604.8,2604.6,3.83936]
[1724092230038,1.59875824,2604.8,2604.6,3.83936]
[1724092230415,1.59875824,2604.8,2604.6,7.67872]
[1724092230643,1.99763618,2604.9,2604.6,3.83934]
[1724092230644,1.59875824,2604.9,2604.6,3.83934]
[1724092230971,1.59875824,2604.9,2604.3,2.3832]
[1724092231154,5.43805824,2604.7,2604.3,3.8398]
[1724092231355,1.59875824,2604.7,2604.3,3.8398]
[1724092231954,1.59875824,2604.6,2604.2,3.83994]
[1724092232142,1.59875824,2604.5,2604.2,3.83994]
[1724092232849,1.59875824,2604.5,2604.1,3.83997]
[1724092233061,5.43813824,2604.6,2604.3,0.04649798]
[1724092233237,1.59875824,2604.5,2604.2,3.83991]
[1724092233435,5.43826824,2604.5,2604.4,0.04649798]
[1724092233772,3.83981,2604.3,2603.9,6.84032]
[1724092233933,6.89538744,2604.5,2603.9,3.84032]
[1724092233934,5.44041097,2604.4,2603.9,3.84032]
[1724092234139,1.60074097,2604.3,2603.9,3.84032]
[1724092234586,1.60074097,2604.3,2603.9,7.68062]
[1724092234896,1.60074097,2604.3,2603.9,3.8403]
[1724092235067,1.60074097,2604.3,2604.0,3.84016]
[1724092235678,1.60074097,2604.3,2603.9,3.84037]
[1724092236009,1.60074097,2604.2,2603.6,5.2639]
[1724092236177,1.60074097,2604.2,2603.8,3.84046]
[1724092236884,5.44075097,2604.2,2603.7,4.36698]
[1724092237366,5.44075097,2604.2,2603.8,3.84053]
[1724092237560,2.4017,2604.1,2603.5,6.84085]
[1724092237875,5.44113193,2603.9,2603.3,3.84117]
[1724092238120,5.44113193,2603.9,2603.6,0.04664235]
[1724092238121,5.44137193,2603.7,2603.6,0.04664235]
[1724092238270,3.84086,2603.6,2603.1,3.84145]
[1724092238479,1.59941365,2603.6,2603.2,3.84138]
[1724092238818,7.84180365,2603.7,2603.2,3.84138]
[1724092239530,5.44031365,2603.6,2603.1,3.84145]
[1724092239820,5.44031365,2603.6,2602.9,3.84183]
[1724092239821,7.68238,2603.4,2602.9,3.84183]
[1724092239969,5.44054365,2603.4,2602.9,3.84183]
[1724092240321,1.59941365,2603.5,2603.3,3.84127]
[1724092240465,1.59941365,2603.8,2603.4,0.632767]
[1724092240664,2.3644,2604.3,2603.6,2.3166]
[1724092240665,1.59941365,2604.0,2603.6,2.3166]
[1724092240871,1.59941365,2604.1,2603.6,2.3166]
[1724092241091,1.59941365,2604.2,2603.9,3.84038]
[1724092241271,1.59941365,2604.2,2603.7,3.84061]
[1724092241622,1.59941365,2604.0,2603.5,7.68181]
[1724092241768,5.43957365,2604.1,2603.6,3.84082]
[1724092241981,9.27977365,2604.1,2603.6,3.84082]
[1724092242184,5.43957365,2604.1,2603.6,3.84082]
[1724092242412,5.43957365,2604.1,2603.5,4.6724277]
[1724092242413,5.43965365,2604.0,2603.5,4.6724277]
[1724092243221,3.84024,2604.0,2603.5,8.5133377]
[1724092243402,5.43957365,2604.1,2603.6,3.84078]
[1724092243814,9.27981365,2604.1,2603.5,8.5132777]
[1724092243995,3.84034,2604.0,2603.5,3.84091]
[1724092244426,6.29592,2603.9,2603.3,3.84115]
[1724092244588,6.29592,2603.9,2603.4,3.0]
[1724092244782,3.84055,2603.8,2603.3,3.84115]
[1724092245102,3.84055,2603.8,2603.1,3.84148]
[1724092245103,0.78954636,2603.8,2603.1,3.84148]
[1724092245421,3.84111,2603.5,2602.9,3.84179]
[1724092245591,1.59941365,2603.8,2603.5,3.8409]
[1724092245779,3.84077,2603.7,2603.2,3.84131]
[1724092245984,3.8409,2603.6,2603.0,6.21568]
[1724092246222,3.84098,2603.5,2603.0,3.84158]
[1724092246428,3.84121,2603.4,2602.7,2.355]
[1724092246631,3.84098,2603.5,2602.9,3.84182]
[1724092246922,7.73835365,2603.6,2603.1,3.84156]
[1724092247118,6.13894,2603.6,2603.1,7.68305]
[1724092247420,2.2981,2603.6,2603.2,3.8414]
[1724092247981,6.13893,2603.6,2603.1,3.84149]
[1724092248514,6.13893,2603.6,2603.1,7.68299]
[1724092249018,6.13893,2603.6,2603.2,3.84141]
[1724092249596,6.13893,2603.6,2603.1,3.84149]
[1724092249799,3.841,2603.5,2603.1,3.84149]
[1724092250001,3.841,2603.5,2603.2,0.04779753]
[1724092250393,4.45491,2603.5,2603.2,0.04779753]
[1724092250592,6.16347,2603.3,2602.8,3.842]
[1724092250888,3.84165,2603.1,2602.9,0.04779753]
[1724092251329,6.841288,2603.3,2602.6,3.8422]
[1724092251532,6.841288,2603.3,2603.0,0.04779753]
[1724092251714,2.999938,2603.3,2602.9,3.84179]
[1724092251891,2.382,2603.6,2603.3,3.84125]
[1724092252243,2.382,2603.6,2603.2,3.84142]
[1724092252443,2.382,2603.6,2603.4,0.04779753]
[1724092252743,2.382,2603.6,2603.2,3.84142]
[1724092253091,6.22291,2603.6,2603.3,0.04779753]
[1724092253345,6.845181,2603.6,2603.3,0.04779753]
[1724092253493,6.845181,2603.6,2603.1,3.84147]
[1724092253923,6.845181,2603.6,2603.2,0.04779753]
[1724092254441,1.0685891,2603.5,2603.2,0.04779753]
[1724092254608,3.84113,2603.4,2603.2,0.04779753]
[1724092254803,4.9095791,2603.5,2603.2,0.04779753]
[1724092255024,4.9095791,2603.5,2603.0,3.8417]
[1724092255340,8.7506391,2603.5,2602.9,7.68352]
[1724092255541,8.7506391,2603.5,2603.1,0.04779753]
[1724092255743,2.382,2603.6,2603.2,3.84139]
[1724092256049,6.22285,2603.6,2603.2,0.04779753]
[1724092256350,7.229211,2603.6,2603.2,0.04779753]
[1724092257347,7.229211,2603.6,2603.2,3.88921753]
[1724092257523,2.382,2603.6,2603.2,7.73056753]
[1724092257701,2.382,2603.6,2603.2,3.88914753]
[1724092258101,6.22284,2603.6,2603.2,3.88914753]
[1724092258452,3.84069,2603.7,2603.2,3.88908753]
[1724092258763,2.2803,2603.5,2603.2,0.04779753]
[1724092258900,3.84117,2603.4,2603.2,0.04779753]
[1724092259093,6.12129,2603.5,2603.2,0.04779753]
[1724092259356,6.12129,2603.5,2603.0,3.84165]
[1724092259950,6.12129,2603.5,2603.1,0.0480739]
[1724092260111,2.2803,2603.5,2603.1,3.8896139]
[1724092260503,6.12131,2603.5,2603.1,3.8896139]
[1724092261122,2.2803,2603.5,2603.1,3.8896139]
[1724092262174,2.2803,2603.5,2603.2,3.84135]
[1724092262312,2.2819,2603.9,2603.3,3.84121]
[1724092262517,19.77,2604.1,2603.7,3.84065]
[1724092262732,19.77,2604.1,2603.7,4.224685]
[1724092263019,19.77,2604.1,2603.9,3.84038]
[1724092263745,19.77,2604.1,2604.0,3.8883139]
[1724092264139,2.2819,2604.4,2604.0,3.8883139]
[1724092265123,2.2819,2604.4,2604.0,3.84024]
[1724092265529,2.2819,2604.4,2604.1,0.0480739]
[1724092265725,3.85154818,2604.8,2604.1,0.0480739]
[1724092265726,5.43858365,2604.8,2604.1,4.66094429]
[1724092265927,2.3543,2604.9,2604.3,3.83978]
[1724092265928,3.95371365,2604.9,2604.3,3.83978]
[1724092266124,6.193,2605.1,2604.4,3.83965]
[1724092266352,6.81702982,2605.1,2604.4,3.83965]
[1724092266734,3.8388,2605.0,2604.5,0.0480739]
[1724092266935,2.97832982,2605.1,2604.6,3.83928]
[1724092267139,2.97832982,2605.1,2604.2,6.83991]
[1724092267318,2.97832982,2605.1,2604.7,0.0480739]
[1724092267319,2.3543,2605.1,2604.7,0.0480739]
[1724092267520,3.83903,2604.9,2604.4,3.83965]
[1724092267755,3.83903,2604.9,2604.8,0.0480739]
[1724092267969,4.458363,2604.9,2604.4,3.83965]
[1724092268219,3.83903,2604.9,2604.8,0.0480739]
[1724092268385,6.19305,2605.1,2604.4,3.83965]
[1724092268528,7.67803,2604.9,2604.8,0.0480739]
[1724092268726,3.83921,2604.7,2604.2,6.83981]
[1724092268962,3.83887,2605.0,2604.4,3.83958]
[1724092269162,6.19306,2605.1,2604.4,3.83958]
[1724092269481,3.83892,2604.9,2604.4,3.83958]
[1724092269635,6.19306,2605.1,2604.5,3.8395]
[1724092270132,6.19302,2605.1,2604.6,3.83922]
[1724092270346,6.19302,2605.1,2604.6,4.607092]
[1724092270729,2.3543,2605.1,2604.7,3.83919]
[1724092271252,5.45022183,2605.3,2604.7,3.83913]
[1724092271566,3.85080818,2605.3,2604.7,7.67823]
[1724092271779,5.60534399,2605.3,2604.8,3.83905]
[1724092272322,5.60534399,2605.3,2604.7,3.8391]
[1724092272638,3.83854,2605.2,2604.7,3.8391]
[1724092273105,9.44375399,2605.3,2604.7,3.8391]
[1724092273307,3.8385,2605.2,2604.7,3.8391]
[1724092273522,3.83862,2605.1,2604.7,3.8391]
[1724092274019,3.83848,2605.2,2604.7,3.8391]
[1724092274168,5.60532399,2605.3,2604.7,3.83907]
[1724092274169,3.83841,2605.3,2604.7,3.83907]
[1724092274362,3.83908,2604.8,2604.3,3.83971]
[1724092274567,5.43819365,2605.0,2604.4,3.83965]
[1724092274818,3.83908,2604.8,2604.3,3.83978]
[1724092275170,3.83908,2604.8,2604.3,7.67951]
[1724092275369,3.83908,2604.8,2604.2,3.83993]
[1724092275570,4.58203012,2604.8,2604.2,3.83993]
[1724092276131,8.42117012,2604.8,2604.3,3.83979]
[1724092276436,3.83923,2604.7,2604.3,3.83979]
[1724092276986,3.83944,2604.6,2603.9,3.84029]
[1724092277182,3.83958,2604.5,2604.0,3.84022]
[1724092278037,3.83958,2604.5,2604.0,3.84024]
[1724092278183,3.83958,2604.5,2604.0,7.68032]
[1724092278632,6.18813,2604.7,2604.1,3.84004]
[1724092279348,3.83949,2604.6,2604.1,3.84004]
[1724092279718,10.02746,2604.7,2604.1,7.68005]
[1724092280037,3.83943,2604.6,2604.1,3.84001]
[1724092280201,3.83943,2604.6,2604.1,3.83999]
[1724092280804,3.83952,2604.5,2604.1,3.83999]
[1724092281911,3.83937,2604.6,2604.1,7.67999]
[1724092282109,3.83937,2604.6,2604.1,3.83999]
[1724092282818,3.83937,2604.6,2604.2,0.04686201]
[1724092283018,3.83952,2604.5,2604.2,0.04686201]
[1724092283419,3.8398,2604.3,2604.2,0.04686201]
[1724092283619,3.8398,2604.3,2603.8,3.84053]
[1724092283817,3.8398,2604.3,2604.2,0.04701264]
[1724092284450,3.83938,2604.6,2604.0,3.84015]
[1724092284608,3.83938,2604.6,2604.1,3.84002]
[1724092284813,3.83938,2604.6,2604.1,4.608037]
[1724092285117,6.18804,2604.7,2604.2,3.88693542]
[1724092285454,0.01237818,2605.0,2604.2,3.88693542]
[1724092285455,5.43828365,2605.0,2604.3,3.83979]
[1724092285654,2.3521,2605.2,2604.7,3.83915]
[1724092285811,1.59941365,2605.4,2604.7,3.83912]
[1724092286009,9.27567365,2605.5,2604.9,3.8389]
[1724092286330,3.83811,2605.5,2604.9,4.23511522]
[1724092286529,7.67622,2605.5,2605.0,0.0470817]
[1724092286744,7.67623,2605.5,2605.0,0.0470817]
[1724092286946,3.83811,2605.5,2605.0,0.0470817]
[1724092287154,3.83832,2605.4,2605.0,0.0470817]
[1724092287329,3.83832,2605.4,2604.8,3.83902]
[1724092287525,3.83811,2605.5,2605.1,0.0470817]
[1724092287735,3.83811,2605.5,2604.9,3.83889]
[1724092287939,3.83811,2605.5,2605.2,0.0470817]
[1724092288122,3.83818,2605.4,2604.9,3.83889]
[1724092288343,3.83811,2605.5,2605.3,0.04490143]
[1724092288538,4.85373707,2605.5,2604.9,3.83889]
[1724092288862,4.85373707,2605.5,2605.4,0.04490143]
[1724092288863,7.67624,2605.5,2605.4,0.04490143]
[1724092289064,3.95151365,2605.6,2604.8,3.83903]
[1724092289065,3.83824,2605.4,2604.8,3.83903]
[1724092289245,7.67652,2605.4,2604.8,3.83903]
[1724092289411,3.83824,2605.4,2604.9,0.04490143]
[1724092289617,7.6765,2605.4,2604.8,3.83903]
[1724092289812,4.51800398,2605.4,2604.6,3.83923]
[1724092290014,3.8386,2605.2,2604.9,0.04490143]
[1724092290325,3.83863,2605.1,2605.0,0.04490143]
[1724092290532,3.8385,2605.2,2605.0,0.04490143]
[1724092290710,3.8385,2605.2,2604.6,3.83923]
[1724092290711,4.5165744,2605.2,2604.6,7.6785]
[1724092290911,3.8385,2605.2,2605.1,0.04490143]
[1724092291114,3.8385,2605.2,2604.6,3.83923]
[1724092291336,3.8385,2605.2,2605.1,0.04490143]
[1724092291544,3.8385,2605.2,2604.6,3.83923]
[1724092291746,3.8385,2605.2,2605.1,0.04490143]
[1724092291946,3.8385,2605.2,2604.6,3.83923]
[1724092292155,2.2624,2605.3,2605.1,0.04490143]
[1724092292315,3.83833,2605.3,2604.8,3.83897]
[1724092292651,4.90140898,2605.3,2605.2,0.04490143]
[1724092292852,4.90140898,2605.3,2604.4,9.19782]
[1724092292853,3.83871,2605.1,2604.4,9.19782]
[1724092293069,3.83863,2605.1,2604.4,6.83952]
[1724092293349,4.458741,2605.0,2604.5,0.04490143]
[1724092293758,3.83894,2604.9,2604.5,0.04490143]
[1724092293968,3.83936,2604.6,2604.5,0.04490143]
[1724092294318,3.83936,2604.6,2604.0,3.84016]
[1724092294617,3.83936,2604.6,2604.5,0.04453739]
[1724092294825,3.83936,2604.6,2604.0,3.84016]
[1724092294826,3.83936,2604.6,2604.0,7.68032]
[1724092295072,3.83921,2604.7,2604.5,0.04453739]
[1724092295251,4.466351,2604.7,2604.0,3.84016]
[1724092295555,6.27129,2604.8,2604.3,3.83979]
[1724092295781,3.83885,2605.0,2604.4,3.83959]
[1724092296132,3.83863,2605.1,2604.5,3.88401739]
[1724092296479,3.83863,2605.1,2604.5,4.51910913]
[1724092296919,3.8385,2605.2,2604.6,3.83927]
[1724092297114,3.83842,2605.3,2604.7,3.83917]
[1724092297332,3.83842,2605.3,2604.7,4.71977607]
[1724092297537,3.83858,2605.2,2604.7,3.88395216]
[1724092298077,3.83848,2605.2,2604.7,3.88395216]
[1724092298411,3.83871,2605.1,2604.7,0.04478216]
[1724092299259,4.54951348,2605.5,2604.8,2.4669]
[1724092299429,2.343,2605.5,2604.9,3.83884]
[1724092299628,3.83818,2605.4,2604.9,3.88353427]
[1724092300456,3.83818,2605.4,2604.9,3.88349427]
[1724092300764,6.18104,2605.5,2605.0,3.83875]
[1724092300918,3.83818,2605.4,2604.9,0.6797337]
[1724092301122,7.67644,2605.4,2605.1,0.043167]
[1724092301459,3.83848,2605.2,2604.6,6.14975]
[1724092301659,3.83862,2605.1,2604.6,6.14975]
[1724092302127,3.83833,2605.3,2604.7,7.67828]
[1724092302329,3.83833,2605.3,2604.7,3.83907]
[1724092302649,3.83826,2605.4,2604.7,3.83907]
[1724092302843,7.67657,2605.4,2604.8,3.83899]
[1724092303057,3.83837,2605.3,2604.8,3.83899]
[1724092303263,3.83826,2605.4,2604.8,4.9377275]
[1724092303860,3.83811,2605.5,2605.0,6.09506]
[1724092306077,3.83834,2605.3,2605.0,2.2563]
[1724092306280,3.83834,2605.3,2604.7,2.4382]
[1724092306581,3.83834,2605.3,2604.7,6.27736]
[1724092306582,3.83856,2605.2,2604.7,6.27736]
[1724092307068,3.83834,2605.3,2604.7,6.27736]
[1724092307448,7.67678,2605.3,2604.7,6.27736]
[1724092307649,3.83834,2605.3,2604.8,3.83895]
[1724092307896,5.43752365,2605.5,2605.0,3.83874]
[1724092308180,3.83811,2605.5,2605.0,3.83874]
[1724092308394,5.43752365,2605.5,2605.0,3.8387]
[1724092308678,5.43752365,2605.5,2605.1,3.8386]
[1724092309149,1.72765435,2605.7,2605.3,3.83823]
[1724092309335,1.72765435,2605.7,2605.1,3.07715]
[1724092309336,0.1282407,2605.7,2605.1,3.07715]
[1724092309541,3.83789,2605.6,2605.1,6.9157]
[1724092309736,5.56545435,2605.7,2605.1,6.9157]
[1724092309937,3.83804,2605.5,2605.1,0.76775]
[1724092310139,3.83826,2605.4,2605.1,3.0]
[1724092310358,3.83826,2605.4,2605.0,3.0]
[1724092310558,6.19744,2605.5,2605.0,3.0]
[1724092310779,6.19744,2605.5,2605.0,6.83877]
[1724092311342,6.19744,2605.5,2605.1,3.83861]
[1724092311679,6.19744,2605.5,2605.0,6.83875]
[1724092312890,6.19744,2605.5,2605.1,0.0427529]
[1724092313073,6.19744,2605.5,2605.1,3.8813729]
[1724092313489,6.19744,2605.5,2605.1,0.0427529]
[1724092313689,3.83818,2605.4,2605.1,0.0427529]
[1724092314480,7.18945639,2605.5,2605.1,0.0427529]
[1724092314688,6.19744,2605.5,2605.1,0.0427529]
[1724092315086,0.1282407,2605.7,2605.3,3.83826]
[1724092315287,0.1282407,2605.7,2605.4,3.83817]
[1724092315620,0.1282407,2605.7,2605.4,3.88084663]
[1724092316124,0.1282407,2605.7,2605.5,3.83795]
[1724092316320,0.1282407,2605.7,2605.5,3.83796]
[1724092316623,0.1282407,2605.7,2605.6,0.04274663]
[1724092316776,0.1282407,2605.7,2605.6,3.88062663]